bitfinex/quotes_ETHUSD_20250603
["timestamp","ask_amount","ask_price","bid_price","bid_amount"]
[1748938938785,3.84454356,2601.1,2600.7,8.0]
[1748938939022,3.84452731,2601.1,2600.5,8.0]
[1748938939196,8.83501596,2601.2,2600.5,8.0]
[1748938939427,0.9752,2601.0,2600.5,8.0]
[1748938939581,3.84492189,2600.9,2600.3,8.0]
[1748938939983,0.9752,2601.0,2600.5,8.0]
[1748938940312,0.9752,2601.0,2600.8,8.0]
[1748938940639,1.0662,2601.3,2600.8,7.418761]
[1748938940799,1.0662,2601.5,2601.0,11.84456073]
[1748938941004,1.0662,2601.5,2601.2,8.0]
[1748938941315,1.0662,2601.5,2601.0,3.8446175]
[1748938942430,3.84408395,2601.4,2600.4,8.384]
[1748938942630,1.27666404,2601.5,2600.3,1.07]
[1748938942631,3.84512882,2600.7,2600.3,1.07]
[1748938942786,1.0564,2600.8,2600.4,2.647824]
[1748938942987,1.0564,2600.8,2600.5,8.0]
[1748938943205,1.0564,2600.8,2600.4,11.8455508]
[1748938943718,1.0564,2600.8,2600.6,3.84524124]
[1748938943926,1.0564,2600.8,2600.7,8.0]
[1748938944450,1.0564,2600.8,2600.4,11.84552983]
[1748938944746,1.0564,2600.8,2600.5,8.0]
[1748938945651,1.0564,2600.8,2600.5,11.88375067]
[1748938945854,1.0564,2600.8,2600.5,8.0]
[1748938948116,1.0564,2600.8,2600.5,8.03845011]
[1748938948318,1.0564,2600.8,2600.5,11.88383633]
[1748938948541,1.0564,2600.8,2600.7,8.0]
[1748938948730,5.0676,2601.0,2600.7,11.84500436]
[1748938948932,1.0626,2601.0,2600.7,8.0]
[1748938949747,1.0626,2601.0,2600.6,3.84520365]
[1748938950640,1.0626,2601.0,2600.7,3.84511576]
[1748938950845,1.0626,2601.0,2600.7,10.0]
[1748938951256,1.0626,2601.0,2600.6,3.84526647]
[1748938951555,1.0626,2601.0,2600.6,13.84526647]
[1748938951714,1.0626,2601.0,2600.5,3.84541434]
[1748938951918,1.0626,2601.0,2600.6,10.0]
[1748938952536,1.0626,2601.0,2600.7,3.84511482]
[1748938952858,1.0626,2601.0,2600.4,8.0]
[1748938952859,1.0626,2601.0,2600.4,8.384]
[1748938953023,0.9739,2601.3,2600.8,3.84485649]
[1748938953355,0.9739,2601.3,2601.1,3.8444887]
[1748938953660,0.9739,2601.3,2601.0,3.84461135]
[1748938954720,0.9739,2601.3,2601.1,3.84449666]
[1748938955559,4.0,2601.5,2601.1,3.84449666]
[1748938955751,1.0336,2601.5,2601.1,3.84449666]
[1748938955950,5.0316,2601.5,2601.1,3.84449666]
[1748938956457,1.0336,2601.5,2601.2,3.84426795]
[1748938956660,5.0306,2601.5,2601.2,3.84426795]
[1748938957040,5.0306,2601.5,2601.1,11.8444693]
[1748938957641,5.0296,2601.5,2601.2,3.84434947]
[1748938957847,1.0336,2601.5,2601.1,11.84452542]
[1748938958130,1.0336,2601.5,2601.2,3.84428289]
[1748938959377,1.0336,2601.5,2601.1,11.84445774]
[1748938959573,1.0336,2601.5,2601.1,8.0]
[1748938959875,4.87753782,2601.5,2601.0,8.0]
[1748938960076,4.87753782,2601.5,2601.0,3.84466372]
[1748938960372,1.0336,2601.5,2601.0,3.84466372]
[1748938960671,1.0336,2601.5,2601.2,8.0]
[1748938962074,1.0336,2601.5,2601.2,3.84435103]
[1748938962462,1.0336,2601.5,2601.0,2.1640113]
[1748938962663,1.0336,2601.5,2601.2,8.0]
[1748938962856,4.87756229,2601.5,2601.1,8.0]
[1748938963052,4.87756229,2601.5,2601.0,8.0]
[1748938963259,1.0336,2601.5,2601.0,3.84465115]
[1748938963884,1.0336,2601.5,2600.9,13.84479118]
[1748938964182,1.0336,2601.5,2601.1,10.0]
[1748938964494,4.8775509,2601.5,2600.9,4.31890667]
[1748938964644,1.0336,2601.5,2601.0,3.844633]
[1748938964844,4.87756001,2601.5,2601.0,3.844633]
[1748938966093,1.0336,2601.5,2601.0,3.844633]
[1748938966394,4.87757673,2601.5,2601.0,3.844633]
[1748938966589,1.0336,2601.5,2601.0,3.844633]
[1748938966795,1.0336,2601.5,2601.1,3.84447583]
[1748938967291,1.0336,2601.5,2601.1,3.84452731]
[1748938967477,0.9746,2601.9,2601.3,3.84423173]
[1748938967678,3.984,2601.8,2601.5,3.84393441]
[1748938968265,0.9746,2601.9,2601.6,3.8437879]
[1748938968467,4.9576,2601.9,2601.5,3.84387136]
[1748938968873,4.9576,2601.9,2601.4,13.84404441]
[1748938969095,4.9576,2601.9,2601.3,10.0]
[1748938969272,0.9839,2601.6,2601.2,10.0]
[1748938969469,0.9839,2601.6,2601.2,3.84434918]
[1748938969994,0.9839,2601.6,2601.0,4.22866644]
[1748938970496,0.9839,2601.6,2601.1,3.748975]
[1748938970694,0.9839,2601.6,2601.2,10.0]
[1748938970894,0.9839,2601.6,2601.0,4.2286399]
[1748938971195,3.84402187,2601.5,2601.0,0.384]
[1748938971400,3.98,2601.5,2601.0,10.42244261]
[1748938971567,4.82774109,2601.6,2601.0,4.22860924]
[1748938971767,8.80874109,2601.6,2601.0,4.22860924]
[1748938972467,8.80874109,2601.6,2601.0,3.84460924]
[1748938973598,4.9649,2601.6,2601.1,3.84447231]
[1748938973900,8.80872237,2601.6,2601.1,3.84447231]
[1748938974097,4.9649,2601.6,2601.1,3.84447231]
[1748938974304,4.9649,2601.6,2601.2,3.84432892]
[1748938974605,0.9839,2601.6,2601.2,3.84432892]
[1748938974780,4.9619,2601.6,2601.2,3.84432892]
[1748938975278,4.9609,2601.6,2601.2,3.84432892]
[1748938975781,4.9609,2601.6,2601.1,3.84448373]
[1748938976301,4.9599,2601.6,2601.1,3.84448373]
[1748938976504,0.9839,2601.6,2601.1,5.61340965]
[1748938976706,4.9589,2601.6,2601.1,3.84448373]
[1748938977047,4.9589,2601.6,2601.1,13.84448373]
[1748938977214,4.9589,2601.6,2601.2,3.84436874]
[1748938977789,0.55,2602.0,2601.2,3.84436874]
[1748938977790,0.9585,2602.5,2601.4,10.0]
[1748938977986,0.9585,2602.5,2602.0,3.84305257]
[1748938978188,0.9585,2602.5,2602.2,3.84290215]
[1748938978397,1.0335,2602.7,2602.4,3.84260682]
[1748938979713,1.0335,2602.7,2602.5,3.84243796]
[1748938980014,0.9829,2602.9,2602.5,3.84243796]
[1748938980212,0.9829,2602.9,2602.3,0.03842279]
[1748938980412,3.84212445,2602.8,2602.2,3.84286659]
[1748938980620,3.84212445,2602.8,2602.2,13.84286659]
[1748938981380,3.84212445,2602.8,2602.2,4.23099733]
[1748938981921,0.9829,2602.9,2602.2,0.38813074]
[1748938982079,0.9829,2602.9,2602.2,0.94111881]
[1748938982512,3.84225553,2602.7,2602.2,0.94111881]
[1748938982899,3.84204579,2602.8,2602.2,4.78401592]
[1748938983116,0.9829,2602.9,2602.4,3.84259522]
[1748938983319,0.9829,2602.9,2602.4,3.88999522]
[1748938983526,0.9829,2602.9,2602.4,4.75739342]
[1748938983931,4.86323802,2602.9,2602.2,20.0]
[1748938984099,4.86323802,2602.9,2602.3,3.8426753]
[1748938984304,4.86323802,2602.9,2602.4,8.0]
[1748938985091,3.84202496,2602.8,2602.3,8.0]
[1748938985530,1.02132307,2602.9,2602.7,3.84212924]
[1748938985531,0.9829,2602.9,2602.7,3.84212924]
[1748938985893,0.02,2602.9,2602.7,3.84212924]
[1748938986093,0.02,2602.9,2602.8,11.84201629]
[1748938989065,0.02,2602.9,2602.7,3.84216234]
[1748938989265,0.02,2602.9,2602.8,3.88043122]
[1748938990068,0.02,2602.9,2602.8,5.05846058]
[1748938990236,0.02,2602.9,2602.8,15.02004565]
[1748938990964,0.02,2602.9,2602.8,15.10574565]
[1748938991165,0.02,2602.9,2602.8,23.10574565]
[1748938992833,0.998,2603.8,2603.4,8.0]
[1748938993035,0.998,2603.8,2603.3,8.0]
[1748938993235,0.998,2603.8,2603.4,3.84111314]
[1748938993461,0.998,2603.8,2603.3,11.84121417]
[1748938993663,0.998,2603.8,2603.4,3.84110692]
[1748938993968,0.02,2603.9,2603.5,8.03840705]
[1748938994185,0.02,2603.9,2603.8,11.84054074]
[1748938994381,0.02,2603.9,2603.8,8.0]
[1748938995359,0.02,2603.9,2603.8,11.84054074]
[1748938996059,1.02,2604.9,2603.8,24.03621728]
[1748938996257,0.20203,2604.8,2604.3,11.83976137]
[1748938996479,4.0411213,2604.8,2604.3,11.988]
[1748938996646,0.20203,2604.8,2604.3,11.988]
[1748938996842,0.20203,2604.8,2604.3,8.0]
[1748938997061,0.20203,2604.8,2604.3,15.82678969]
[1748938997689,0.20203,2604.8,2604.3,11.987]
[1748938997895,0.20203,2604.8,2604.3,15.82571668]
[1748938998194,4.04110662,2604.8,2604.3,11.986]
[1748938998353,0.50611066,2604.7,2604.3,11.986]
[1748938998689,0.50611066,2604.7,2604.3,12.36492879]
[1748938999247,0.50611066,2604.7,2604.3,8.37892879]
[1748938999499,0.50611066,2604.7,2604.3,12.36292879]
[1748939000365,0.20203,2604.8,2604.3,12.36292879]
[1748939000567,4.85898002,2604.9,2604.3,12.36292879]
[1748939000568,1.02,2604.9,2604.4,3.83962138]
[1748939001288,3.83919923,2604.8,2604.3,12.36292879]
[1748939001863,0.9818,2604.8,2604.3,0.37892879]
[1748939002070,0.9818,2604.8,2604.2,11.83980902]
[1748939002387,0.9818,2604.8,2604.1,15.82207491]
[1748939002388,3.83930447,2604.7,2604.1,15.82207491]
[1748939002961,4.85932234,2604.8,2604.1,8.0]
[1748939003166,4.80732161,2604.7,2604.4,8.0]
[1748939003489,4.80732161,2604.7,2604.2,11.982]
[1748939004387,4.80727546,2604.7,2604.2,8.0]
[1748939004892,1.0786,2604.3,2603.6,0.0857]
[1748939005187,0.9971,2604.2,2603.7,2.67]
[1748939005391,0.9971,2603.9,2603.7,2.67]
[1748939006968,0.9971,2603.9,2603.4,8.0]
[1748939007495,0.9971,2603.9,2603.4,11.84111566]
[1748939008108,0.9971,2603.9,2603.6,8.0]
[1748939008679,4.88288919,2604.2,2603.6,11.87914976]
[1748939008879,6.01061451,2604.2,2603.6,11.84074642]
[1748939009106,6.01061451,2604.2,2603.7,0.03840291]
[1748939010416,3.8401014,2604.1,2603.7,0.03840291]
[1748939010915,3.8401014,2604.1,2603.6,8.0]
[1748939011220,5.22721455,2604.1,2603.7,5.95051728]
[1748939011404,1.0045,2604.2,2603.9,10.0]
[1748939011782,1.0045,2604.2,2603.8,8.0]
[1748939011982,1.0045,2604.2,2603.6,8.0]
[1748939012193,1.0045,2604.2,2603.9,8.0]
[1748939012519,1.0045,2604.2,2603.8,8.0]
[1748939013121,4.84445445,2604.2,2603.8,8.0]
[1748939013301,4.84445445,2604.2,2603.7,8.0]
[1748939013889,1.0045,2604.2,2603.8,0.03840084]
[1748939014991,1.046,2604.7,2603.9,8.0]
[1748939015193,1.0078,2604.5,2603.9,8.0]
[1748939015422,3.83990879,2604.3,2603.7,3.84060972]
[1748939017026,3.83995599,2604.2,2603.6,11.84076948]
[1748939017190,0.03842307,2604.2,2603.6,8.0]
[1748939017391,1.003,2604.1,2603.5,10.0]
[1748939017586,3.84051936,2603.9,2603.4,18.384]
[1748939017918,4.8431103,2604.1,2603.6,8.0]
[1748939018120,4.88153337,2604.1,2603.6,8.0]
[1748939018422,3.84034795,2604.0,2603.4,4.22504077]
[1748939020726,4.88156633,2604.1,2603.6,8.0]
[1748939020929,3.84031098,2604.0,2603.6,8.0]
[1748939021319,3.84031098,2604.0,2603.5,9.609023]
[1748939021523,0.03842307,2603.9,2603.4,0.384]
[1748939021714,3.84049674,2603.9,2603.6,8.0]
[1748939021915,3.84049674,2603.9,2603.4,8.384]
[1748939022749,3.84049674,2603.9,2603.4,8.0]
[1748939023239,0.03842307,2604.0,2603.6,8.0]
[1748939023541,3.87873845,2604.0,2603.6,8.0]
[1748939023840,1.003,2604.1,2603.6,8.0]
[1748939023841,4.84313939,2604.1,2603.7,2.91742887]
[1748939024421,3.84025357,2604.0,2603.7,2.91742887]
[1748939024655,3.84040126,2603.9,2603.6,8.0]
[1748939025503,3.87868642,2604.0,2603.4,3.84107709]
[1748939025703,1.003,2604.1,2603.6,8.0]
[1748939026356,1.003,2604.1,2603.5,10.0]
[1748939026554,1.003,2604.1,2603.5,13.84084342]
[1748939026703,4.84315626,2604.1,2603.7,10.0]
[1748939027332,4.84315626,2604.1,2603.6,13.99296]
[1748939027534,2.27174129,2604.1,2603.7,10.0]
[1748939027749,2.27174129,2604.1,2603.4,19.209395]
[1748939027750,3.84036213,2604.0,2603.4,19.209395]
[1748939027936,3.84036213,2604.0,2603.4,9.209395]
[1748939028146,3.87883914,2603.9,2603.4,3.658835]
[1748939028455,3.87883914,2603.9,2603.5,10.0]
[1748939028855,3.87891025,2603.9,2603.5,10.0]
[1748939029011,3.84054672,2603.8,2603.3,13.84124908]
[1748939029202,3.84054672,2603.8,2603.4,8.0]
[1748939029644,4.28755736,2603.9,2603.4,8.0]
[1748939030363,0.44711062,2603.9,2603.3,11.84124908]
[1748939030522,0.03842307,2603.9,2603.3,12.23372783]
[1748939030719,3.87866884,2604.0,2603.6,8.0]
[1748939030926,3.84043908,2603.9,2603.6,8.0]
[1748939033050,3.87869243,2604.0,2603.4,3.84100539]
[1748939033497,3.87869243,2604.0,2603.6,8.0]
[1748939033655,3.84039379,2603.9,2603.6,8.0]
[1748939034032,5.14751687,2604.0,2603.4,3.84100539]
[1748939034366,5.14751687,2604.0,2603.5,10.0]
[1748939034567,5.14751687,2604.0,2603.4,3.84100539]
[1748939034864,5.14751687,2604.0,2603.5,10.0]
[1748939035044,3.84043355,2603.9,2603.3,12.23371469]
[1748939035239,3.84043355,2603.9,2603.5,10.0]
[1748939035444,3.84043355,2603.9,2603.3,12.23371469]
[1748939035751,5.14746269,2604.0,2603.6,8.0]
[1748939036366,4.969,2604.1,2603.6,3.84072333]
[1748939036552,1.003,2604.1,2603.6,3.84072333]
[1748939037344,4.84314296,2604.1,2603.5,17.78178502]
[1748939037550,1.003,2604.1,2603.6,3.84080879]
[1748939037727,4.8431198,2604.1,2603.6,3.84080879]
[1748939038629,1.003,2604.1,2603.7,3.84061777]
[1748939038876,4.969,2604.1,2603.6,3.84076439]
[1748939040171,4.84312695,2604.1,2603.5,17.78179782]
[1748939040372,4.84312695,2604.1,2603.5,17.78181976]
[1748939040373,1.003,2604.1,2603.5,17.78181976]
[1748939040574,1.003,2604.1,2603.6,3.84070876]
[1748939041278,1.003,2604.1,2603.7,3.84063113]
[1748939041778,1.003,2604.1,2603.6,3.84076973]
[1748939042069,1.003,2604.1,2603.5,19.59923172]
[1748939042242,1.003,2604.1,2603.5,8.0]
[1748939042243,3.84036343,2604.0,2603.5,8.0]
[1748939042677,3.84036343,2604.0,2603.5,3.84095886]
[1748939043547,3.84036343,2604.0,2603.4,11.84106687]
[1748939043772,1.003,2604.1,2603.5,3.8408746]
[1748939044138,1.4999,2604.1,2603.5,3.8408746]
[1748939044674,3.84024618,2604.0,2603.5,3.8408746]
[1748939045169,3.84024618,2604.0,2603.5,6.75808123]
[1748939047237,3.84024618,2604.0,2603.6,8.0]
[1748939047436,1.0676,2603.9,2603.6,8.0]
[1748939048877,1.60807462,2603.9,2603.3,0.39247875]
[1748939049184,1.0676,2603.4,2602.8,10.0]
[1748939049338,1.0676,2603.4,2602.7,2.26498219]
[1748939049339,3.84139911,2603.3,2602.7,4.88714294]
[1748939049538,3.84139911,2603.3,2602.9,8.0]
[1748939049773,1.0209,2603.2,2602.9,8.37931655]
[1748939049976,1.0209,2603.2,2602.9,0.37931655]
[1748939050289,1.0209,2603.2,2602.7,12.887119]
[1748939050453,1.0209,2603.2,2602.9,8.0]
[1748939050647,4.8623804,2603.2,2602.7,9.42063349]
[1748939051573,4.8623804,2603.2,2602.7,8.37563349]
[1748939051779,4.86876354,2603.1,2602.6,8.20030639]
[1748939052310,3.84172709,2603.0,2602.6,8.20030639]
[1748939052510,3.84172117,2603.0,2602.6,0.20030639]
[1748939052816,1.0271,2603.1,2602.5,8.0]
[1748939052817,4.86874144,2603.1,2602.5,11.84238007]
[1748939053115,1.0271,2603.1,2602.6,3.84229476]
[1748939053712,1.0271,2603.1,2602.5,11.84239072]
[1748939054013,1.0271,2603.1,2602.6,3.84229742]
[1748939054218,1.0271,2603.1,2602.8,8.0]
[1748939054372,1.0271,2603.1,2602.7,8.0]
[1748939055272,1.0271,2603.1,2602.7,11.84203098]
[1748939055606,1.0271,2603.1,2602.8,6.75919858]
[1748939055806,3.84104546,2603.5,2602.7,1.56842914]
[1748939055807,3.966,2603.4,2603.1,11.84147921]
[1748939056595,1.0764,2603.6,2603.2,2.91720663]
[1748939056914,1.0764,2603.6,2603.4,6.7583101]
[1748939057776,1.0764,2603.6,2603.3,11.84124175]
[1748939057972,1.0764,2603.6,2603.4,8.0]
[1748939058173,1.0764,2603.6,2603.3,11.84124175]
[1748939058496,1.0541,2604.0,2603.6,3.8408128]
[1748939058680,1.0541,2604.0,2603.6,6.75797782]
[1748939059097,5.0201,2604.0,2603.6,6.75797782]
[1748939059298,1.0541,2604.0,2603.6,6.75797782]
[1748939059507,4.92081891,2604.5,2603.8,2.91720663]
[1748939059705,5.41282739,2604.5,2603.9,8.0]
[1748939059910,5.53928189,2604.5,2603.9,8.0]
[1748939060080,5.0472,2604.5,2603.9,8.0]
[1748939060776,8.88676617,2604.5,2603.9,11.84030031]
[1748939061005,3.83977137,2604.4,2603.9,8.0]
[1748939061510,5.0472,2604.5,2604.0,6.75736536]
[1748939061711,5.0472,2604.5,2604.1,8.67573654]
[1748939061915,5.0472,2604.5,2604.1,8.0]
[1748939062495,4.91356759,2604.4,2603.5,0.1457]
[1748939062679,4.91399859,2604.1,2603.5,8.0]
[1748939063178,3.84024885,2604.0,2603.4,6.75829559]
[1748939063423,4.91399159,2604.1,2603.5,3.84098314]
[1748939065301,1.0738,2604.1,2603.4,2.91720663]
[1748939065511,4.91391573,2604.1,2603.5,3.84087877]
[1748939066021,3.84024577,2604.0,2603.4,6.75824206]
[1748939066225,3.965,2604.0,2603.5,3.84089585]
[1748939066523,1.51658,2603.9,2603.3,16.43527837]
[1748939066729,1.51658,2603.9,2603.4,13.84112105]
[1748939066902,1.51658,2603.9,2603.4,3.8411097]
[1748939067096,1.51658,2603.9,2603.5,3.84095507]
[1748939067306,1.0628,2604.3,2603.8,6.75774737]
[1748939067506,1.0628,2604.3,2603.9,10.0]
[1748939067855,1.0628,2604.3,2603.9,13.8403233]
[1748939068019,1.0628,2604.3,2603.9,3.84039325]
[1748939068338,1.0628,2604.3,2604.0,3.84014765]
[1748939070428,1.0628,2604.3,2603.9,11.84034084]
[1748939071150,1.0628,2604.3,2604.0,3.8402265]
[1748939072822,1.0628,2604.3,2604.1,3.84006855]
[1748939073018,3.965,2604.5,2603.9,11.8403825]
[1748939073019,3.965,2604.5,2604.0,6.7574524]
[1748939073261,5.0176,2604.5,2604.1,3.83996028]
[1748939073567,1.0526,2604.5,2604.2,3.8399149]
[1748939075872,1.0526,2604.5,2604.1,11.84001673]
[1748939076175,1.0526,2604.5,2604.1,8.0]
[1748939076367,1.0526,2604.5,2604.1,11.84007055]
[1748939076576,1.0526,2604.5,2604.1,8.0]
[1748939076774,1.0526,2604.5,2604.1,11.84006486]
[1748939077077,1.0526,2604.5,2604.2,3.83984751]
[1748939079279,1.0526,2604.5,2604.1,13.17162916]
[1748939079473,1.0526,2604.5,2604.2,3.83990056]
[1748939080895,1.0526,2604.5,2604.3,11.83975277]
[1748939081588,1.0526,2604.5,2604.1,1.33158101]
[1748939081778,1.0526,2604.5,2604.1,8.0]
[1748939081966,1.0526,2604.5,2604.3,8.0]
[1748939084506,1.0526,2604.5,2604.3,11.83973324]
[1748939084667,1.0526,2604.5,2604.3,3.0904711]
[1748939084867,1.0526,2604.5,2604.2,3.83992116]
[1748939085680,1.0526,2604.5,2604.3,3.83970374]
[1748939086393,5.0102,2604.7,2604.4,3.83959451]
[1748939086703,1.0462,2604.7,2604.4,3.83959451]
[1748939087072,1.0462,2604.7,2604.4,3.8395454]
[1748939088801,1.0462,2604.7,2604.5,3.8394391]
[1748939088971,1.0462,2604.7,2604.3,3.83975374]
[1748939088972,1.0462,2604.7,2604.4,3.83959335]
[1748939089938,1.0462,2604.7,2604.4,8.0]
[1748939091330,1.0462,2604.7,2604.4,10.0]
[1748939093195,1.0462,2604.7,2604.3,11.83971977]
[1748939093730,1.0462,2604.7,2604.4,3.83965596]
[1748939094227,1.0462,2604.7,2604.3,11.83970091]
[1748939094405,3.983,2604.9,2604.4,8.0]
[1748939094600,5.82568181,2604.9,2604.4,11.83964455]
[1748939094996,1.86268181,2604.9,2604.4,11.83964455]
[1748939095191,5.82568181,2604.9,2604.4,11.83964455]
[1748939095432,5.82568181,2604.9,2604.3,3.83973161]
[1748939095628,5.82568181,2604.9,2604.4,3.83958628]
[1748939095830,5.82568181,2604.9,2604.5,3.83947571]
[1748939096021,1.86268181,2604.9,2604.6,3.83934511]
[1748939096221,5.0435,2604.9,2604.6,3.83934511]
[1748939096398,5.0435,2604.9,2604.5,3.8394794]
[1748939096594,1.0805,2604.9,2604.6,3.83934497]
[1748939096930,1.0805,2604.9,2604.5,11.8394354]
[1748939097128,1.0805,2604.9,2604.6,3.83927181]
[1748939097932,1.0805,2604.9,2604.5,11.83940885]
[1748939099032,1.0805,2604.9,2604.5,8.0]
[1748939099618,1.0805,2604.9,2604.4,11.83959321]
[1748939099935,1.0805,2604.9,2604.5,8.0]
[1748939101701,1.0805,2604.9,2604.5,11.83950502]
[1748939105038,1.0805,2604.9,2604.5,8.0]
[1748939106241,1.0805,2604.9,2604.5,11.83938506]
[1748939106441,5.0425,2604.9,2604.5,11.83938506]
[1748939107043,0.973,2604.8,2604.5,8.0]
[1748939107643,0.973,2604.8,2604.4,8.0]
[1748939107943,1.0867,2604.3,2604.0,0.7595519]
[1748939108128,5.0487,2604.3,2603.9,8.0]
[1748939108679,5.0487,2604.3,2604.0,3.84024338]
[1748939108842,1.0867,2604.3,2604.0,3.84024338]
[1748939109049,1.0867,2604.3,2604.0,7.702114]
[1748939109207,1.0479,2604.5,2604.2,3.83995084]
[1748939110047,1.0479,2604.5,2604.4,10.91720663]
[1748939110348,0.87938257,2604.8,2604.4,10.91720663]
[1748939110349,1.0781,2604.7,2604.6,8.0]
[1748939110722,1.0781,2604.7,2604.2,8.0]
[1748939110921,0.88792616,2604.6,2604.2,3.83991264]
[1748939111125,0.88792616,2604.6,2604.2,8.0]
[1748939111339,0.88792616,2604.6,2604.0,3.84017853]
[1748939111539,4.9936,2604.5,2603.7,3.92757221]
[1748939111834,8.83313094,2604.5,2604.1,0.5]
[1748939112041,4.81178616,2604.4,2604.1,0.5]
[1748939112254,4.87141512,2604.3,2604.1,0.5]
[1748939112448,4.87141512,2604.3,2603.8,1.45]
[1748939112449,1.0316,2604.3,2603.6,11.84078823]
[1748939112653,3.962,2604.2,2603.6,8.0]
[1748939113154,1.0763,2604.0,2603.3,2.91720663]
[1748939113310,1.58013,2604.0,2603.3,2.91720663]
[1748939113512,1.58013,2604.0,2603.4,11.84110519]
[1748939113950,1.58013,2604.0,2603.4,13.84110519]
[1748939114649,1.58013,2604.0,2603.5,11.84097416]
[1748939114856,1.58013,2604.0,2603.6,11.84073105]
[1748939115012,1.0763,2604.0,2603.6,11.84073105]
[1748939115418,1.0763,2604.0,2603.5,6.75813059]
[1748939115662,1.0763,2604.0,2603.6,8.0]
[1748939116321,1.0763,2604.0,2603.2,0.384]
[1748939116525,1.0685,2603.7,2603.3,10.0]
[1748939117217,1.0685,2603.7,2603.4,0.5]
[1748939117414,1.0685,2603.7,2603.4,8.5]
[1748939117719,1.0208,2603.6,2603.4,0.5]
[1748939118044,1.90316225,2603.6,2603.4,0.5]
[1748939118259,5.74408107,2603.6,2603.4,0.5]
[1748939118421,1.0756,2603.5,2603.4,0.5]
[1748939123761,1.0756,2603.5,2603.0,12.04199128]
[1748939124422,1.0756,2603.5,2603.2,8.0]
[1748939126842,1.0756,2603.5,2603.4,0.5]
[1748939127246,5.0376,2603.5,2603.4,0.5]
[1748939127468,5.0376,2603.5,2603.3,3.84125803]
[1748939128376,5.0376,2603.5,2603.3,8.0]
[1748939129162,1.0756,2603.5,2603.3,8.0]
[1748939129365,1.0756,2603.5,2603.3,11.84124097]
[1748939129563,1.0756,2603.5,2603.3,8.0]
[1748939130777,1.0314,2603.9,2603.6,3.84069158]
[1748939131075,4.9934,2603.9,2603.5,11.84091543]
[1748939131461,4.9934,2603.9,2603.5,11.8409166]
[1748939131843,1.0314,2603.9,2603.5,11.8409166]
[1748939132778,1.0314,2603.9,2603.2,2.91720663]
[1748939132964,4.87186534,2603.9,2603.3,11.84127501]
[1748939133169,1.0314,2603.9,2603.5,8.0]
[1748939133573,1.02100558,2603.9,2603.6,0.5]
[1748939133761,4.98300558,2603.9,2603.6,0.5]
[1748939134278,4.98300558,2603.9,2603.5,3.84095744]
[1748939134279,4.98300558,2603.9,2603.5,8.0]
[1748939134878,3.83998004,2604.2,2603.5,12.10131535]
[1748939135093,3.84010352,2604.1,2603.5,15.942221]
[1748939135504,7.8020072,2604.2,2603.6,3.84082847]
[1748939135807,0.97210571,2604.4,2603.5,10.91720663]
[1748939136079,3.962,2604.1,2603.8,11.84041727]
[1748939137044,3.962,2604.1,2603.8,8.0]
[1748939137996,3.962,2604.1,2603.8,11.84051648]
[1748939138753,3.962,2604.1,2603.8,8.0]
[1748939139585,1.0574,2604.2,2603.8,11.8405286]
[1748939139779,3.961,2604.1,2603.8,11.8405286]
[1748939140793,1.0574,2604.2,2603.9,3.84039325]
[1748939140998,5.0184,2604.2,2603.9,3.84039325]
[1748939141484,5.0184,2604.2,2603.9,3.84033063]
[1748939141657,5.0184,2604.2,2604.0,10.0]
[1748939141857,5.0184,2604.2,2603.9,3.84033063]
[1748939142677,3.961,2604.2,2604.0,3.84016235]
[1748939143017,0.9796,2604.8,2604.1,8.0]
[1748939143157,3.961,2604.7,2604.3,8.0]
[1748939144097,3.8396068,2604.5,2604.0,0.38304092]
[1748939144259,5.25453369,2604.6,2604.1,8.0]
[1748939144974,5.25448901,2604.6,2604.1,8.0]
[1748939145993,5.25448901,2604.6,2604.1,3.84009505]
[1748939146156,5.25448901,2604.6,2604.2,8.0]
[1748939146365,5.25448901,2604.6,2604.1,8.0]
[1748939147715,3.83950868,2604.5,2604.1,8.0]
[1748939147865,3.83950868,2604.5,2604.0,0.38242707]
[1748939148210,3.8398034,2604.3,2603.7,3.84062744]
[1748939148513,5.0015,2604.4,2603.9,8.0]
[1748939148514,8.84122995,2604.4,2603.9,8.0]
[1748939149079,8.84122995,2604.4,2604.1,0.5]
[1748939149509,5.0015,2604.4,2604.1,0.5]
[1748939149959,1.0405,2604.4,2604.1,0.5]
[1748939150167,3.96,2604.3,2604.1,4.33997182]
[1748939150460,1.0405,2604.4,2604.1,0.5]
[1748939150666,3.96,2604.3,2604.1,0.5]
[1748939151087,1.0405,2604.4,2604.1,0.5]
[1748939151266,5.0005,2604.4,2604.1,0.5]
[1748939153503,5.0005,2604.4,2604.1,10.5]
[1748939153725,1.0118,2604.7,2604.2,6.75709598]
[1748939153861,3.96,2604.5,2604.2,6.75709598]
[1748939154503,3.96,2604.5,2604.2,3.83988935]
[1748939155106,4.85101403,2604.7,2604.2,3.83988935]
[1748939155107,1.0118,2604.7,2604.2,3.83988935]
[1748939155310,3.96,2604.6,2604.2,8.0]
[1748939155472,3.96,2604.6,2604.2,11.83988754]
[1748939156503,3.96,2604.6,2604.2,3.83989128]
[1748939158385,1.0118,2604.7,2604.2,3.83989128]
[1748939158609,4.9718,2604.7,2604.2,3.83989128]
[1748939158808,4.9718,2604.7,2604.1,9.77243373]
[1748939158809,8.8110493,2604.7,2604.1,9.77243373]
[1748939159016,3.83962086,2604.5,2604.1,8.5]
[1748939159385,7.7984173,2604.6,2604.1,8.5]
[1748939159998,3.8394173,2604.6,2604.1,12.34008918]
[1748939160201,7.7984173,2604.6,2604.1,8.5]
[1748939161404,3.83954512,2604.5,2604.1,8.5]
[1748939161581,7.79836326,2604.6,2604.1,12.34008387]
[1748939162721,4.85103534,2604.7,2604.1,12.34008387]
[1748939163026,3.959,2604.6,2604.2,3.8399351]
[1748939163208,3.959,2604.6,2604.1,11.84003791]